fUST/lending_fUST_20240828
["ID","MTS","AMOUNT","RATE_DAILY","PERIOD"]
[336400226,1724808642709,-500.0,0.00011232,2]
[336400227,1724808642718,-500.0,0.00011232,2]
[336400228,1724808642728,-500.0,0.00011232,2]
[336400229,1724808642737,-500.0,0.00011232,2]
[336400230,1724808642747,-500.0,0.00011232,2]
[336400231,1724808642756,-500.0,0.00011232,2]
[336400232,1724808642766,-500.0,0.00011232,2]
[336400233,1724808642776,-500.0,0.00011232,2]
[336400234,1724808642786,-500.0,0.00011232,2]
[336400235,1724808642796,-500.0,0.00011232,2]
[336400236,1724808642805,-500.0,0.00011232,2]
[336400237,1724808642816,-500.0,0.00011232,2]
[336400238,1724808642826,-500.0,0.00011232,2]
[336400239,1724808642836,-500.0,0.00011232,2]
[336400240,1724808642845,-776.36,0.00011232,2]
[336400241,1724808642857,-334.24,0.00011232,2]
[336400242,1724808642875,-290.93984343,0.00011232,2]
[336400243,1724808642885,-633.70898855,0.00011232,2]
[336400245,1724808642895,-500.0,0.00011232,2]
[336400247,1724808642905,-500.0,0.00011232,2]
[336400249,1724808642916,-500.0,0.00011232,2]
[336400250,1724808642926,-500.0,0.00011232,2]
[336400251,1724808642936,-500.0,0.00011232,2]
[336400252,1724808642947,-500.0,0.00011232,2]
[336400253,1724808642958,-628.4,0.00011232,2]
[336400254,1724808642969,-500.0,0.00011232,2]
[336400255,1724808642979,-158.75589454,0.00011232,2]
[336400256,1724808642989,-500.0,0.00011232,2]
[336400257,1724808642999,-500.0,0.00011232,2]
[336400258,1724808643009,-500.0,0.00011232,2]
[336400260,1724808643019,-500.0,0.00011232,2]
[336400261,1724808643030,-500.0,0.00011232,2]
[336400262,1724808643040,-3789.61,0.00011232,2]
[336400263,1724808643050,-500.0,0.00011232,2]
[336400264,1724808643061,-500.0,0.00011232,2]
[336400265,1724808643070,-500.0,0.00011232,2]
[336400266,1724808643080,-1000.01,0.00011232,2]
[336400267,1724808643090,-500.0,0.00011232,2]
[336400268,1724808643100,-697.91,0.00011232,2]
[336400269,1724808643110,-500.0,0.00011232,2]
[336400270,1724808643132,-2909.84,0.00011232,2]
[336400271,1724808643142,-192.01,0.00011232,2]
[336400272,1724808643154,-1770.44,0.00011232,2]
[336400273,1724808643169,-500.0,0.00011232,2]
[336400274,1724808643179,-723.97,0.00011232,2]
[336400275,1724808643189,-500.0,0.00011232,2]
[336400276,1724808643198,-484.03,0.00011232,2]
[336400277,1724808643210,-1549.37,0.00011232,2]
[336400278,1724808643220,-3519.74,0.00011232,2]
[336400282,1724808643230,-500.0,0.00011232,2]
[336400287,1724808643241,-2496.8,0.00011232,2]
[336400291,1724808643251,-13436.69,0.00011232,2]
[336400294,1724808643262,-500.0,0.00011232,2]
[336400295,1724808643271,-500.0,0.00011232,2]
[336400298,1724808643282,-549.86099431,0.00011232,2]
[336400299,1724808643291,-500.0,0.00011232,2]
[336400301,1724808643301,-500.0,0.00011232,2]
[336400303,1724808643311,-500.0,0.00011232,2]
[336400305,1724808643320,-2874.95,0.00011232,2]
[336400307,1724808643330,-500.0,0.00011232,2]
[336400309,1724808643340,-500.0,0.00011232,2]
[336400310,1724808643350,-500.0,0.00011232,2]
[336400311,1724808643360,-500.0,0.00011232,2]
[336400312,1724808643369,-500.0,0.00011232,2]
[336400314,1724808643379,-500.0,0.00011232,2]
[336400315,1724808643389,-500.0,0.00011232,2]
[336400316,1724808643399,-500.0,0.00011232,2]
[336400317,1724808643410,-535.66040708,0.00011232,2]
[336400318,1724808643420,-500.0,0.00011232,2]
[336400319,1724808643430,-500.0,0.00011232,2]
[336400320,1724808643440,-500.0,0.00011232,2]
[336400321,1724808643450,-500.0,0.00011232,2]
[336400322,1724808643460,-500.0,0.00011232,2]
[336400323,1724808643471,-500.0,0.00011232,2]
[336400324,1724808643480,-500.0,0.00011232,2]
[336400325,1724808643489,-500.0,0.00011232,2]
[336400326,1724808643499,-500.0,0.00011232,2]
[336400327,1724808643509,-923.07,0.00011232,2]
[336400328,1724808643520,-500.0,0.00011232,2]
[336400329,1724808643529,-500.0,0.00011232,2]
[336400330,1724808643539,-500.0,0.00011232,2]
[336400331,1724808643548,-500.0,0.00011232,2]
[336400332,1724808643557,-500.0,0.00011232,2]
[336400333,1724808643567,-500.0,0.00011232,2]
[336400334,1724808643576,-170.79598897,0.00011232,2]
[336400335,1724808643586,-500.0,0.00011232,2]
[336400336,1724808643595,-500.0,0.00011232,2]
[336400337,1724808643606,-500.0,0.00011232,2]
[336400339,1724808643615,-500.0,0.00011232,2]
[336400341,1724808643636,-500.0,0.00011232,2]
[336400342,1724808643646,-500.0,0.00011232,2]
[336400343,1724808643656,-500.0,0.00011232,2]
[336400344,1724808643666,-500.0,0.00011232,2]
[336400345,1724808643675,-345.93000185,0.00011232,2]
[336400346,1724808643684,-500.0,0.00011232,2]
[336400347,1724808643693,-500.0,0.00011232,2]
[336400348,1724808643703,-500.0,0.00011232,2]
[336400349,1724808643711,-500.0,0.00011232,2]
[336400350,1724808643720,-717.43,0.00011232,2]
[336400351,1724808643730,-500.0,0.00011232,2]
[336400352,1724808643741,-500.0,0.00011232,2]
[336400353,1724808643751,-500.0,0.00011232,2]
[336400354,1724808643761,-2131.57,0.00011232,2]
[336400355,1724808643771,-567.27,0.00011232,2]
[336400356,1724808643780,-548.38,0.00011232,2]
[336400357,1724808643789,-540.24442495,0.00011232,2]
[336400358,1724808643798,-500.0,0.00011232,2]
[336400359,1724808643809,-500.0,0.00011232,2]
[336400360,1724808643818,-500.0,0.00011232,2]
[336400361,1724808643827,-500.0,0.00011232,2]
[336400362,1724808643838,-500.0,0.00011232,2]
[336400363,1724808643849,-1095.42,0.00011232,2]
[336400364,1724808643860,-500.0,0.00011232,2]
[336400365,1724808643878,-500.0,0.00011232,2]
[336400366,1724808643889,-500.0,0.00011232,2]
[336400367,1724808643899,-500.0,0.00011232,2]
[336400368,1724808643909,-7299.74,0.00011232,2]
[336400369,1724808643920,-500.0,0.00011232,2]
[336400370,1724808643929,-500.0,0.00011232,2]
[336400371,1724808643941,-500.0,0.00011232,2]
[336400372,1724808643951,-4780.34,0.00011232,2]
[336400373,1724808643961,-500.0,0.00011232,2]
[336400374,1724808643970,-500.0,0.00011232,2]
[336400375,1724808643981,-595.45460509,0.00011232,2]
[336400376,1724808643991,-500.0,0.00011232,2]
[336400377,1724808644138,-218.50278203,0.00011232,2]
[336400379,1724808644148,-500.0,0.00011232,2]
[336400380,1724808644158,-500.0,0.00011232,2]
[336400381,1724808644170,-320.57084156,0.00011232,2]
[336400382,1724808644179,-500.0,0.00011232,2]
[336400383,1724808644189,-2792.01,0.00011232,2]
[336400384,1724808644199,-500.0,0.00011232,2]
[336400385,1724808644208,-3611.71,0.00011232,2]
[336400386,1724808644217,-500.0,0.00011232,2]
[336400387,1724808644226,-409.05557946,0.00011232,2]
[336400388,1724808644236,-500.0,0.00011232,2]
[336400389,1724808644247,-513.43859334,0.00011232,2]
[336400390,1724808644257,-972.42,0.00011232,2]
[336400391,1724808644266,-2532.82,0.00011232,2]
[336400392,1724808644275,-500.0,0.00011232,2]
[336400393,1724808644285,-501.70695037,0.00011232,2]
[336400394,1724808644295,-500.0,0.00011232,2]
[336400395,1724808644305,-500.0,0.00011232,2]
[336400396,1724808644317,-520.89325567,0.00011232,2]
[336400397,1724808644326,-500.0,0.00011232,2]
[336400398,1724808644335,-196.477237,0.00011233,2]
[336400399,1724808644345,-500.0,0.00011273,2]
[336400400,1724808644356,-5426.48497084,0.00011497,2]
[336400401,1724808644368,-5229.66045578,0.00011506,5]
[336400402,1724808644377,-500.0,0.00011506,2]
[336400403,1724808644387,-508.49,0.00011506,2]
[336400404,1724808644397,-500.0,0.00011506,2]
[336400405,1724808644408,-575.13,0.00011506,2]
[336400406,1724808644419,-1014.63,0.00011506,2]
[336400407,1724808644429,-500.0,0.00011506,2]
[336400408,1724808644439,-500.0,0.00011506,2]
[336400409,1724808644449,-500.0,0.00011506,2]
[336400410,1724808644458,-500.0,0.00011506,2]
[336400411,1724808644468,-500.0,0.00011506,2]
[336400412,1724808644478,-500.0,0.00011506,2]
[336400413,1724808644488,-500.0,0.00011506,2]
[336400414,1724808644498,-227.88,0.00011506,2]
[336400415,1724808644508,-500.0,0.00011506,2]
[336400416,1724808644517,-500.0,0.00011506,2]
[336400417,1724808644526,-776.36,0.00011506,2]
[336400418,1724808644536,-500.0,0.00011506,2]
[336400419,1724808644545,-500.0,0.00011506,2]
[336400420,1724808644555,-500.0,0.00011506,2]
[336400421,1724808644564,-500.0,0.00011506,2]
[336400422,1724808644574,-500.0,0.00011506,2]
[336400423,1724808644584,-434.94,0.00011506,2]
[336400424,1724808644593,-3789.61,0.00011506,2]
[336400425,1724808644603,-237.8,0.00011506,2]
[336400426,1724808644613,-1000.01,0.00011506,2]
[336400427,1724808644629,-488.57433442,0.00011506,2]
[336400428,1724808644639,-697.91,0.00011506,2]
[336400429,1724808644648,-2909.84,0.00011506,2]
[336400430,1724808644658,-1770.44,0.00011506,2]
[336400431,1724808644667,-500.0,0.00011506,2]
[336400432,1724808644677,-723.97,0.00011506,2]
[336400433,1724808644686,-1549.37,0.00011506,2]
[336400434,1724808644696,-3519.74,0.00011506,2]
[336400435,1724808644705,-500.0,0.00011506,2]
[336400436,1724808644715,-2496.8,0.00011506,2]
[336400437,1724808644725,-13436.69,0.00011506,2]
[336400438,1724808644734,-500.0,0.00011506,2]
[336400439,1724808644745,-253.03,0.00011506,2]
[336400440,1724808644755,-500.0,0.00011506,2]
[336400441,1724808644764,-500.0,0.00011506,2]
[336400442,1724808644775,-500.0,0.00011506,2]
[336400443,1724808644784,-2874.95,0.00011506,2]
[336400444,1724808644794,-500.0,0.00011506,2]
[336400445,1724808644804,-466.07702903,0.00011506,2]
[336400446,1724808644814,-500.0,0.00011506,2]
[336400447,1724808644823,-500.0,0.00011506,2]
[336400448,1724808644832,-500.0,0.00011506,2]
[336400449,1724808644842,-500.0,0.00011506,2]
[336400450,1724808644851,-500.0,0.00011506,2]
[336400451,1724808644861,-221.64111306,0.00011506,2]
[336400452,1724808644872,-500.0,0.00011506,2]
[336400453,1724808644881,-500.0,0.00011506,2]
[336400454,1724808644891,-923.07,0.00011506,2]
[336400455,1724808644900,-500.0,0.00011506,2]
[336400456,1724808644910,-500.0,0.00011506,2]
[336400457,1724808644919,-195.32,0.00011506,2]
[336400458,1724808644929,-500.0,0.00011506,2]
[336400459,1724808644938,-500.0,0.00011506,2]
[336400460,1724808644948,-500.0,0.00011506,2]
[336400461,1724808644959,-500.0,0.00011506,2]
[336400462,1724808644969,-500.0,0.00011506,2]
[336400463,1724808644981,-500.0,0.00011506,2]
[336400464,1724808644991,-500.0,0.00011506,2]
[336400465,1724808645002,-500.0,0.00011506,2]
[336400466,1724808645012,-500.0,0.00011506,2]
[336400467,1724808645023,-500.0,0.00011506,2]
[336400468,1724808645032,-500.0,0.00011506,2]
[336400469,1724808645041,-717.43,0.00011506,2]
[336400470,1724808645051,-500.0,0.00011506,2]
[336400471,1724808645061,-500.0,0.00011506,2]
[336400472,1724808645071,-2131.57,0.00011506,2]
[336400473,1724808645080,-548.38,0.00011506,2]
[336400474,1724808645090,-500.0,0.00011506,2]
[336400475,1724808645099,-500.0,0.00011506,2]
[336400476,1724808645109,-500.0,0.00011506,2]
[336400477,1724808645122,-572.61,0.00011506,2]
[336400478,1724808645132,-1095.42,0.00011506,2]
[336400479,1724808645141,-500.0,0.00011506,2]
[336400480,1724808645151,-500.0,0.00011506,2]
[336400481,1724808645161,-564.37355843,0.00011506,2]
[336400482,1724808645175,-575.39,0.00011506,2]
[336400483,1724808645185,-7299.74,0.00011506,2]
[336400484,1724808645195,-500.0,0.00011506,2]
[336400485,1724808645208,-508.88,0.00011506,2]
[336400486,1724808645218,-4780.34,0.00011506,2]
[336400487,1724808645228,-500.0,0.00011506,2]
[336400488,1724808645239,-500.0,0.00011506,2]
[336400489,1724808645250,-374.8806259,0.00011506,2]
[336400490,1724808645261,-500.0,0.00011506,2]
[336400491,1724808645271,-2792.01,0.00011506,2]
[336400492,1724808645280,-500.0,0.00011506,2]
[336400493,1724808645290,-3611.71,0.00011506,2]
[336400494,1724808645300,-500.0,0.00011506,2]
[336400495,1724808645310,-289.39881332,0.00011506,2]
[336400496,1724808645319,-972.42,0.00011506,2]
[336400497,1724808645329,-2532.82,0.00011506,2]
[336400498,1724808645339,-500.0,0.00011506,2]
[336400499,1724808645348,-500.0,0.00011506,2]
[336400500,1724808645358,-500.0,0.00011506,2]
[336400501,1724808645370,-500.0,0.00011506,2]
[336400502,1724808645379,-196.477237,0.00011507,2]
[336400503,1724808645389,-501.05260222,0.00011521,2]
[336400504,1724808645398,-587.0,0.00011609,2]
[336400505,1724808645407,-288.5284708,0.00011621,2]
[336400506,1724808645417,-1767.84535613,0.00011712,2]
[336400507,1724808645428,-508.49,0.0001178,2]
[336400508,1724808645438,-1014.63,0.0001178,2]
[336400509,1724808645447,-500.0,0.0001178,2]
[336400510,1724808645456,-644.80996809,0.0001178,2]
[336400511,1724808645466,-500.0,0.0001178,2]
[336400512,1724808645476,-500.0,0.0001178,2]
[336400513,1724808645486,-776.36,0.0001178,2]
[336400514,1724808645495,-500.0,0.0001178,2]
[336400515,1724808645506,-500.0,0.0001178,2]
[336400516,1724808645515,-3789.61,0.0001178,2]
[336400517,1724808645524,-1000.01,0.0001178,2]
[336400518,1724808645534,-697.91,0.0001178,2]
[336400519,1724808645543,-2909.84,0.0001178,2]
[336400520,1724808645552,-1770.44,0.0001178,2]
[336400521,1724808645562,-500.0,0.0001178,2]
[336400522,1724808645571,-723.97,0.0001178,2]
[336400523,1724808645581,-1549.37,0.0001178,2]
[336400524,1724808645590,-3519.74,0.0001178,2]
[336400525,1724808645600,-247.28,0.0001178,2]
[336400526,1724808645611,-2496.8,0.0001178,2]
[336400527,1724808645623,-13436.69,0.0001178,2]
[336400528,1724808645632,-500.0,0.0001178,2]
[336400529,1724808645641,-500.0,0.0001178,2]
[336400530,1724808645651,-500.0,0.0001178,2]
[336400531,1724808645660,-2874.95,0.0001178,2]
[336400532,1724808645671,-500.0,0.0001178,2]
[336400533,1724808645683,-332.96,0.0001178,2]
[336400534,1724808645693,-500.0,0.0001178,2]
[336400535,1724808645703,-500.0,0.0001178,2]
[336400536,1724808645714,-500.0,0.0001178,2]
[336400537,1724808645724,-602.9,0.0001178,2]
[336400538,1724808645735,-172.65,0.0001178,2]
[336400539,1724808645745,-500.0,0.0001178,2]
[336400540,1724808645755,-923.07,0.0001178,2]
[336400541,1724808645764,-500.0,0.0001178,2]
[336400542,1724808645773,-500.0,0.0001178,2]
[336400543,1724808645783,-421.57,0.0001178,2]
[336400544,1724808645792,-500.0,0.0001178,2]
[336400545,1724808645801,-587.01,0.0001178,2]
[336400546,1724808645810,-500.0,0.0001178,2]
[336400547,1724808645820,-500.0,0.0001178,2]
[336400548,1724808645829,-500.0,0.0001178,2]
[336400549,1724808645839,-500.0,0.0001178,2]
[336400550,1724808645849,-717.43,0.0001178,2]
[336400552,1724808645858,-500.0,0.0001178,2]
[336400554,1724808645871,-2131.57,0.0001178,2]
[336400555,1724808645882,-548.38,0.0001178,2]
[336400556,1724808645892,-500.0,0.0001178,2]
[336400557,1724808645903,-1095.42,0.0001178,2]
[336400558,1724808645915,-224.67617431,0.0001178,2]
[336400559,1724808645925,-500.0,0.0001178,2]
[336400560,1724808645934,-7299.74,0.0001178,2]
[336400561,1724808645946,-4780.34,0.0001178,2]
[336400562,1724808645955,-500.0,0.0001178,2]
[336400563,1724808645966,-2792.01,0.0001178,2]
[336400564,1724808645977,-513.62579405,0.0001178,2]
[336400565,1724808645990,-3611.71,0.0001178,2]
[336400566,1724808645999,-500.0,0.0001178,2]
[336400567,1724808646011,-972.42,0.0001178,2]
[336400568,1724808646022,-2532.82,0.0001178,2]
[336400569,1724808646035,-500.0,0.0001178,2]
[336400570,1724808646045,-500.0,0.0001178,2]
[336400571,1724808646056,-500.0,0.0001178,2]
[336400572,1724808646066,-524.20219005,0.0001178,2]
[336400573,1724808646075,-1000.0,0.00011821,2]
[336400574,1724808646085,-812.05632668,0.00011842,2]
[336400575,1724808646095,-5426.48497084,0.00011861,2]
[336400576,1724808646104,-409.3878908,0.0001189,2]
[336400577,1724808646113,-490496.10161012,0.000119,2]
[336400579,1724808646178,-297.88010267,0.000119,2]
[336400582,1724808646887,-144078.12256921,0.000119,2]
[336400583,1724808646896,-1949.87222712,0.00011954,2]
[336400584,1724808646905,-934.56859613,0.00011999,2]
[336400585,1724808646915,-312.10426371,0.00012024,2]
[336400586,1724808646925,-500.0,0.00012024,2]
[336400587,1724808646934,-508.49,0.00012054,2]
[336400588,1724808646944,-1014.63,0.00012054,2]
[336400589,1724808646953,-500.0,0.00012054,2]
[336400590,1724808646963,-500.0,0.00012054,2]
[336400591,1724808646972,-776.36,0.00012054,2]
[336400592,1724808646981,-500.0,0.00012054,2]
[336400593,1724808646990,-500.0,0.00012054,2]
[336400594,1724808647000,-3789.61,0.00012054,2]
[336400595,1724808647009,-1000.01,0.00012054,2]
[336400596,1724808647019,-697.91,0.00012054,2]
[336400597,1724808647029,-2909.84,0.00012054,2]
[336400598,1724808647038,-1770.44,0.00012054,2]
[336400599,1724808647047,-723.97,0.00012054,2]
[336400600,1724808647058,-1549.37,0.00012054,2]
[336400601,1724808647067,-3519.74,0.00012054,2]
[336400602,1724808647076,-2496.8,0.00012054,2]
[336400603,1724808647086,-13436.69,0.00012054,2]
[336400604,1724808647096,-591.65623637,0.00012054,2]
[336400605,1724808647105,-500.0,0.00012054,2]
[336400606,1724808647114,-2874.95,0.00012054,2]
[336400607,1724808647126,-500.0,0.00012054,2]
[336400608,1724808647136,-500.0,0.00012054,2]
[336400609,1724808647145,-500.0,0.00012054,2]
[336400610,1724808647154,-923.07,0.00012054,2]
[336400611,1724808647165,-500.0,0.00012054,2]
[336400612,1724808647177,-500.0,0.00012054,2]
[336400613,1724808647186,-500.0,0.00012054,2]
[336400614,1724808647197,-500.0,0.00012054,2]
[336400615,1724808647209,-424.32862694,0.00012054,2]
[336400616,1724808647218,-717.43,0.00012054,2]
[336400617,1724808647229,-2131.57,0.00012054,2]
[336400618,1724808647240,-548.38,0.00012054,2]
[336400619,1724808647252,-500.0,0.00012054,2]
[336400620,1724808647263,-1095.42,0.00012054,2]
[336400621,1724808647272,-500.0,0.00012054,2]
[336400622,1724808647283,-7299.74,0.00012054,2]
[336400623,1724808647292,-4780.34,0.00012054,2]
[336400624,1724808647302,-500.0,0.00012054,2]
[336400625,1724808647311,-2792.01,0.00012054,2]
[336400626,1724808647321,-3611.71,0.00012054,2]
[336400627,1724808647329,-168.0182227,0.00012054,2]
[336400628,1724808647340,-972.42,0.00012054,2]
[336400629,1724808647349,-2532.82,0.00012054,2]
[336400630,1724808647358,-500.0,0.00012054,2]
[336400631,1724808647371,-500.0,0.00012054,2]
[336400632,1724808647380,-500.0,0.00012054,2]
[336400633,1724808647390,-413.34778969,0.00012121,3]
[336400634,1724808647399,-154.77555691,0.00012121,2]
[336400635,1724808647409,-188.78585449,0.00012121,2]
[336400636,1724808647418,-209.81980082,0.00012121,2]
[336400637,1724808647428,-794.46368439,0.00012121,2]
[336400638,1724808647437,-172.67904957,0.00012121,2]
[336400639,1724808647446,-3095.48272537,0.00012121,2]
[336400640,1724808647457,-308.89734662,0.00012121,2]
[336400641,1724808647469,-154.82890904,0.00012121,2]
[336400642,1724808647479,-301.82720385,0.00012121,2]
[336400643,1724808647490,-8851.31811001,0.00012163,2]
[336400644,1724808647500,-5426.48497084,0.00012226,2]
[336400645,1724808647509,-2150.322645,0.00012228,2]
[336400646,1724808647518,-508.49,0.00012328,2]
[336400647,1724808647527,-1014.63,0.00012328,2]
[336400648,1724808647537,-500.0,0.00012328,2]
[336400649,1724808647548,-500.0,0.00012328,2]
[336400650,1724808647557,-776.36,0.00012328,2]
[336400651,1724808647566,-500.0,0.00012328,2]
[336400652,1724808647576,-500.0,0.00012328,2]
[336400653,1724808647585,-3789.61,0.00012328,2]
[336400654,1724808647594,-1000.01,0.00012328,2]
[336400655,1724808647605,-697.91,0.00012328,2]
[336400656,1724808647615,-2909.84,0.00012328,2]
[336400657,1724808647628,-1770.44,0.00012328,2]
[336400658,1724808647638,-723.97,0.00012328,2]
[336400659,1724808647647,-1549.37,0.00012328,2]
[336400660,1724808647657,-3519.74,0.00012328,2]
[336400661,1724808647666,-2496.8,0.00012328,2]
[336400662,1724808647675,-13436.69,0.00012328,2]
[336400663,1724808647685,-500.0,0.00012328,2]
[336400664,1724808647696,-2874.95,0.00012328,2]
[336400665,1724808647706,-500.0,0.00012328,2]
[336400666,1724808647715,-500.0,0.00012328,2]
[336400667,1724808647726,-612.74,0.00012328,2]
[336400668,1724808647736,-923.07,0.00012328,2]
[336400669,1724808647746,-500.0,0.00012328,2]
[336400670,1724808647756,-500.0,0.00012328,2]
[336400671,1724808647767,-367.14,0.00012328,2]
[336400672,1724808647779,-717.43,0.00012328,2]
[336400673,1724808647788,-2131.57,0.00012328,2]
[336400674,1724808647799,-548.38,0.00012328,2]
[336400675,1724808647809,-1095.42,0.00012328,2]
[336400676,1724808647819,-230.28,0.00012328,2]
[336400677,1724808647830,-7299.74,0.00012328,2]
[336400680,1724808647842,-4780.34,0.00012328,2]
[336400682,1724808647853,-500.0,0.00012328,2]
[336400684,1724808647862,-2792.01,0.00012328,2]
[336400686,1724808647876,-3611.71,0.00012328,2]
[336400688,1724808647886,-972.42,0.00012328,2]
[336400690,1724808647897,-2532.82,0.00012328,2]
[336400692,1724808647906,-506.64542438,0.00012328,2]
[336400693,1724808647916,-500.0,0.00012328,2]
[336400694,1724808647925,-500.0,0.00012328,2]
[336400695,1724808647935,-2144.73852712,0.00012516,2]
[336400696,1724808647945,-210.41322999,0.00012551,2]
[336400697,1724808647956,-154.74467129,0.00012551,2]
[336400698,1724808647967,-1500.0,0.00012551,2]
[336400699,1724808647977,-1000.0,0.00012571,2]
[336400700,1724808647987,-5426.48497084,0.0001259,2]
[336400701,1724808647996,-508.49,0.00012602,2]
[336400702,1724808648006,-1014.63,0.00012602,2]
[336400703,1724808648015,-500.0,0.00012602,2]
[336400704,1724808648026,-500.0,0.00012602,2]
[336400705,1724808648037,-776.36,0.00012602,2]
[336400706,1724808648047,-500.0,0.00012602,2]
[336400707,1724808648057,-500.0,0.00012602,2]
[336400708,1724808648066,-2156.59587676,0.00012602,2]
[336400709,1724808648159,-154.73175921,0.00012121,2]
[336400710,1724808648171,-210.43217369,0.00012516,2]
[336400711,1724808648182,-1633.01412324,0.00012602,2]
[336400712,1724808648191,-1000.01,0.00012602,2]
[336400713,1724808648202,-697.91,0.00012602,2]
[336400714,1724808648212,-2909.84,0.00012602,2]
[336400715,1724808648222,-902.33063335,0.00012602,2]
[336400734,1724808689512,-602.43767059,9.939e-05,2]
[336400735,1724808689541,-154.69833824,0.0001026,2]
[336400736,1724808689566,-300.0,0.00010957,2]
[336400737,1724808689590,-492.63877336,0.00010958,2]
[336400738,1724808689616,-500.0,0.00010958,2]
[336400739,1724808689641,-508.35237818,0.00010958,2]
[336400740,1724808689669,-2912.2,0.00010958,2]
[336400741,1724808689693,-349.53802482,0.00010958,2]
[336400742,1724808689721,-751.58,0.00010958,2]
[336400744,1724808689746,-2186.41,0.00010958,2]
[336400745,1724808689773,-506.62849598,0.00010958,2]
[336400746,1724808689798,-595.86,0.00010958,2]
[336400747,1724808689824,-500.0,0.00010958,2]
[336400748,1724808689851,-1367.06,0.00010958,2]
[336400749,1724808689875,-439.5532308,0.00010958,2]
[336400750,1724808689901,-500.0,0.00010958,2]
[336400751,1724808689927,-1229.05,0.00010958,2]
[336400752,1724808689953,-873.83,0.00010958,2]
[336400753,1724808689980,-2996.06,0.00010958,2]
[336400754,1724808690005,-521.54525278,0.00010958,2]
[336400755,1724808690035,-2271.8,0.00010958,2]
[336400756,1724808690062,-505.03073075,0.00010958,2]
[336400757,1724808690087,-246.21406428,0.00010958,2]
[336400759,1724808690112,-500.0,0.00010958,2]
[336400760,1724808690143,-500.0,0.00010958,2]
[336400761,1724808690171,-500.0,0.00011232,2]
[336400762,1724808690202,-2912.2,0.00011232,2]
[336400763,1724808690228,-751.58,0.00011232,2]
[336400764,1724808690254,-2186.41,0.00011232,2]
[336400765,1724808690279,-595.86,0.00011232,2]
[336400766,1724808690304,-500.0,0.00011232,2]
[336400767,1724808690328,-1367.06,0.00011232,2]
[336400768,1724808690352,-500.0,0.00011232,2]
[336400769,1724808690377,-1229.05,0.00011232,2]
[336400770,1724808690402,-873.83,0.00011232,2]
[336400771,1724808690430,-2996.06,0.00011232,2]
[336400772,1724808690456,-2271.8,0.00011232,2]
[336400773,1724808690482,-500.0,0.00011232,2]
[336400774,1724808690509,-502.11336008,0.00011232,2]
[336400775,1724808690535,-331.12322355,0.00011273,2]
[336400776,1724808690562,-1768.0013112,0.00011409,2]
[336400777,1724808690586,-500.0,0.00011506,2]
[336400778,1724808690614,-2912.2,0.00011506,2]
[336400779,1724808690641,-751.58,0.00011506,2]
[336400780,1724808690676,-2186.41,0.00011506,2]
[336400781,1724808690702,-595.86,0.00011506,2]
[336400782,1724808690727,-525.27402762,0.00011506,2]
[336400783,1724808690753,-1367.06,0.00011506,2]
[336400784,1724808690779,-524.74451786,0.00011506,2]
[336400785,1724808690805,-1229.05,0.00011506,2]